[Event "Titled Tuesday Blitz August 22 Early 2023"]
[White "Gyulamiryan-koryun"]
[Black "EvgenyBurmakin"]
[WhiteElo "2048"]
[BlackElo "2265"]
[Result "0-1"]
[Round "11"]
[TimeControl "180+1"]
[Date "2023.08.22"]
[WhiteClock "0:00:23"]
[BlackClock "0:00:11"]
[Board "150"]

1. d4 {[%clk 0:03:00]}  Nf6 {[%clk 0:02:58]} 2. Nf3 {[%clk 0:02:59]}  g6 {[%clk 0:02:58]} 3. c4 {[%clk 0:02:58]}  Bg7 {[%clk 0:02:59]} 4. Nc3 {[%clk 0:02:58]}  O-O {[%clk 0:02:59]} 5. g3 {[%clk 0:02:55]}  d6 {[%clk 0:02:59]} 6. Bg2 {[%clk 0:02:51]}  Nc6 {[%clk 0:02:59]} 7. O-O {[%clk 0:02:49]}  e5 {[%clk 0:02:59]} 8. e4 {[%clk 0:02:45]}  Bg4 {[%clk 0:02:49]} 9. d5 {[%clk 0:02:39]}  Nd4 {[%clk 0:02:46]} 10. Be3 {[%clk 0:02:35]}  Re8 {[%clk 0:02:29]} 11. Bg5 {[%clk 0:02:13]}  h6 {[%clk 0:02:23]} 12. Bc1 {[%clk 0:02:07]}  c5 {[%clk 0:02:05]} 13. dxc6 {[%clk 0:02:02]}  bxc6 {[%clk 0:02:05]} 14. Qd3 {[%clk 0:01:54]}  Nd7 {[%clk 0:01:56]} 15. h3 {[%clk 0:01:39]}  Nc5 {[%clk 0:01:36]} 16. Qe2 {[%clk 0:01:22]}  Nxe2+ {[%clk 0:01:35]} 17. Nxe2 {[%clk 0:01:20]}  Bxf3 {[%clk 0:01:26]} 18. Bxf3 {[%clk 0:01:21]}  Rb8 {[%clk 0:01:16]} 19. b3 {[%clk 0:01:20]}  a5 {[%clk 0:01:11]} 20. Rd1 {[%clk 0:01:18]}  Qc7 {[%clk 0:01:09]} 21. Bd2 {[%clk 0:01:14]}  Ne6 {[%clk 0:00:49]} 22. Bc3 {[%clk 0:01:13]}  c5 {[%clk 0:00:34]} 23. Bg2 {[%clk 0:01:05]}  Nd4 {[%clk 0:00:34]} 24. Nc1 {[%clk 0:01:03]}  a4 {[%clk 0:00:32]} 25. Rb1 {[%clk 0:01:01]}  axb3 {[%clk 0:00:29]} 26. axb3 {[%clk 0:01:02]}  Rb7 {[%clk 0:00:25]} 27. Bxd4 {[%clk 0:00:54]}  exd4 {[%clk 0:00:26]} 28. e5 {[%clk 0:00:52]}  dxe5 {[%clk 0:00:27]} 29. Bxb7 {[%clk 0:00:51]}  Qxb7 {[%clk 0:00:27]} 30. Nd3 {[%clk 0:00:51]}  Qc6 {[%clk 0:00:23]} 31. Re1 {[%clk 0:00:45]}  g5 {[%clk 0:00:19]} 32. Rbc1 {[%clk 0:00:39]}  e4 {[%clk 0:00:19]} 33. Nb2 {[%clk 0:00:39]}  e3 {[%clk 0:00:18]} 34. Nd3 {[%clk 0:00:38]}  exf2+ {[%clk 0:00:17]} 35. Kxf2 {[%clk 0:00:35]}  Re3 {[%clk 0:00:16]} 36. Rxe3 {[%clk 0:00:30]}  dxe3+ {[%clk 0:00:17]} 37. Kxe3 {[%clk 0:00:31]}  Bd4+ {[%clk 0:00:17]} 38. Kd2 {[%clk 0:00:26]}  Qg2+ {[%clk 0:00:16]} 39. Kd1 {[%clk 0:00:26]}  Be3 {[%clk 0:00:12]} 40. Ne1 {[%clk 0:00:23]}  Qd2# {[%clk 0:00:11]} 0-1


[Site "https://www.chess.com"]

[Event "Titled Tuesday Blitz August 22 Early 2023"]
[White "KorolDimitriy75"]
[Black "KSho99"]
[WhiteElo "2351"]
[BlackElo "2220"]
[Result "1-0"]
[Round "11"]
[TimeControl "180+1"]
[Date "2023.08.22"]
[WhiteClock "0:00:18"]
[BlackClock "0:00:31"]
[Board "151"]

1. d4 {[%clk 0:03:00]}  e6 {[%clk 0:02:59]} 2. c4 {[%clk 0:03:01]}  f5 {[%clk 0:02:59]} 3. Nc3 {[%clk 0:03:01]}  Nf6 {[%clk 0:02:59]} 4. g3 {[%clk 0:03:02]}  Bb4 {[%clk 0:02:55]} 5. Qc2 {[%clk 0:03:01]}  O-O {[%clk 0:02:54]} 6. Bg2 {[%clk 0:03:02]}  Nc6 {[%clk 0:02:48]} 7. Nf3 {[%clk 0:03:02]}  d5 {[%clk 0:02:44]} 8. O-O {[%clk 0:03:01]}  Ne4 {[%clk 0:02:35]} 9. a3 {[%clk 0:02:14]}  Bxc3 {[%clk 0:02:24]} 10. bxc3 {[%clk 0:02:14]}  dxc4 {[%clk 0:02:24]} 11. Nd2 {[%clk 0:02:05]}  Nxd2 {[%clk 0:02:12]} 12. Bxd2 {[%clk 0:02:06]}  Na5 {[%clk 0:02:07]} 13. Bf4 {[%clk 0:01:46]}  c6 {[%clk 0:01:50]} 14. Rab1 {[%clk 0:01:41]}  b5 {[%clk 0:01:45]} 15. a4 {[%clk 0:01:17]}  a6 {[%clk 0:01:25]} 16. axb5 {[%clk 0:01:11]}  axb5 {[%clk 0:01:25]} 17. Rxb5 {[%clk 0:01:09]}  cxb5 {[%clk 0:01:26]} 18. Bxa8 {[%clk 0:01:08]}  Bb7 {[%clk 0:01:26]} 19. Bxb7 {[%clk 0:01:07]}  Nxb7 {[%clk 0:01:26]} 20. Rb1 {[%clk 0:01:06]}  Qa5 {[%clk 0:01:10]} 21. Qb2 {[%clk 0:00:58]}  Nd8 {[%clk 0:01:05]} 22. Bd6 {[%clk 0:00:24]}  Rf7 {[%clk 0:00:53]} 23. Qxb5 {[%clk 0:00:24]}  Qxb5 {[%clk 0:00:50]} 24. Rxb5 {[%clk 0:00:25]}  Rd7 {[%clk 0:00:49]} 25. Be5 {[%clk 0:00:21]}  Nc6 {[%clk 0:00:49]} 26. Rc5 {[%clk 0:00:20]}  Nxe5 {[%clk 0:00:44]} 27. Rxe5 {[%clk 0:00:21]}  Kf7 {[%clk 0:00:43]} 28. Rc5 {[%clk 0:00:21]}  Kf6 {[%clk 0:00:42]} 29. Rxc4 {[%clk 0:00:21]}  Ra7 {[%clk 0:00:41]} 30. e3 {[%clk 0:00:20]}  Ra2 {[%clk 0:00:41]} 31. Kg2 {[%clk 0:00:20]}  Rc2 {[%clk 0:00:40]} 32. Rc6 {[%clk 0:00:20]}  g5 {[%clk 0:00:40]} 33. c4 {[%clk 0:00:20]}  Ke7 {[%clk 0:00:40]} 34. c5 {[%clk 0:00:19]}  Kd7 {[%clk 0:00:40]} 35. Rd6+ {[%clk 0:00:19]}  Ke7 {[%clk 0:00:41]} 36. Ra6 {[%clk 0:00:19]}  h5 {[%clk 0:00:41]} 37. h3 {[%clk 0:00:18]}  Kd7 {[%clk 0:00:34]} 38. Ra7+ {[%clk 0:00:18]}  Kc6 {[%clk 0:00:34]} 39. Rg7 {[%clk 0:00:17]}  g4 {[%clk 0:00:31]} 40. h4 {[%clk 0:00:18]} 1-0


[Site "https://www.chess.com"]

[Event "Titled Tuesday Blitz August 22 Early 2023"]
[White "Mikhaylova, Irina"]
[Black "Kiseleva, Arina"]
[WhiteFideId "4109040"]
[BlackFideId "4164989"]
[WhiteElo "2303"]
[BlackElo "2233"]
[Result "0-1"]
[Round "11"]
[TimeControl "180+1"]
[Date "2023.08.22"]
[WhiteClock "0:00:17"]
[BlackClock "0:00:22"]
[Board "152"]

1. d4 {[%clk 0:03:00]}  Nf6 {[%clk 0:02:58]} 2. Nf3 {[%clk 0:02:58]}  e6 {[%clk 0:02:59]} 3. c4 {[%clk 0:02:58]}  Bb4+ {[%clk 0:02:58]} 4. Nbd2 {[%clk 0:02:58]}  O-O {[%clk 0:02:54]} 5. g3 {[%clk 0:02:58]}  d6 {[%clk 0:02:53]} 6. Bg2 {[%clk 0:02:58]}  Qe7 {[%clk 0:02:52]} 7. O-O {[%clk 0:02:58]}  Bxd2 {[%clk 0:02:50]} 8. Bxd2 {[%clk 0:02:58]}  Ne4 {[%clk 0:02:48]} 9. Be1 {[%clk 0:02:51]}  a5 {[%clk 0:02:43]} 10. Nd2 {[%clk 0:02:48]}  Nxd2 {[%clk 0:02:38]} 11. Bxd2 {[%clk 0:02:48]}  e5 {[%clk 0:02:29]} 12. Bc3 {[%clk 0:02:46]}  f6 {[%clk 0:02:20]} 13. Qd2 {[%clk 0:02:42]}  Ra7 {[%clk 0:02:13]} 14. dxe5 {[%clk 0:02:34]}  fxe5 {[%clk 0:02:12]} 15. Bxa5 {[%clk 0:02:34]}  Nc6 {[%clk 0:02:01]} 16. Bc3 {[%clk 0:02:34]}  Bf5 {[%clk 0:01:55]} 17. b4 {[%clk 0:02:14]}  Rfa8 {[%clk 0:01:38]} 18. Qb2 {[%clk 0:01:21]}  Be6 {[%clk 0:01:32]} 19. Bd5 {[%clk 0:01:15]}  Qf7 {[%clk 0:01:23]} 20. e4 {[%clk 0:01:13]}  Bxd5 {[%clk 0:01:20]} 21. cxd5 {[%clk 0:01:12]}  Ne7 {[%clk 0:01:16]} 22. f4 {[%clk 0:01:04]}  exf4 {[%clk 0:01:11]} 23. Rxf4 {[%clk 0:00:43]}  Qg6 {[%clk 0:01:04]} 24. Qf2 {[%clk 0:00:30]}  h5 {[%clk 0:01:00]} 25. a3 {[%clk 0:00:17]}  Rxa3 {[%clk 0:00:55]} 26. Rxa3 {[%clk 0:00:16]}  Rxa3 {[%clk 0:00:56]} 27. Qb2 {[%clk 0:00:16]}  Ra8 {[%clk 0:00:54]} 28. Kg2 {[%clk 0:00:17]}  Kh7 {[%clk 0:00:52]} 29. Qf2 {[%clk 0:00:17]}  c6 {[%clk 0:00:44]} 30. Qd4 {[%clk 0:00:16]}  cxd5 {[%clk 0:00:41]} 31. exd5 {[%clk 0:00:17]}  Ra2+ {[%clk 0:00:39]} 32. Kh3 {[%clk 0:00:17]}  Nf5 {[%clk 0:00:36]} 33. Rxf5 {[%clk 0:00:17]}  Qxf5+ {[%clk 0:00:36]} 34. Kh4 {[%clk 0:00:17]}  Rxh2# {[%clk 0:00:22]} 0-1


[Site "https://www.chess.com"]

[Event "Titled Tuesday Blitz August 22 Early 2023"]
[White "parintele_chess"]
[Black "Blokhin, Sofia"]
[BlackFideId "4508190"]
[WhiteElo "2216"]
[BlackElo "2276"]
[Result "1-0"]
[Round "11"]
[TimeControl "180+1"]
[Date "2023.08.22"]
[WhiteClock "0:00:14"]
[BlackClock "0:00:11"]
[Board "153"]

1. d4 {[%clk 0:03:00]}  f5 {[%clk 0:02:58]} 2. Bf4 {[%clk 0:02:55]}  g6 {[%clk 0:02:57]} 3. h4 {[%clk 0:02:55]}  Nf6 {[%clk 0:02:53]} 4. h5 {[%clk 0:02:54]}  Rg8 {[%clk 0:02:49]} 5. hxg6 {[%clk 0:02:49]}  hxg6 {[%clk 0:02:50]} 6. e3 {[%clk 0:02:45]}  d6 {[%clk 0:02:47]} 7. Bc4 {[%clk 0:02:43]}  e6 {[%clk 0:02:46]} 8. Nc3 {[%clk 0:02:38]}  c6 {[%clk 0:02:42]} 9. Nf3 {[%clk 0:02:37]}  Be7 {[%clk 0:02:29]} 10. Ng5 {[%clk 0:02:28]}  d5 {[%clk 0:02:25]} 11. Bd3 {[%clk 0:02:27]}  Ne4 {[%clk 0:02:23]} 12. Bxe4 {[%clk 0:02:26]}  dxe4 {[%clk 0:02:15]} 13. Nh7 {[%clk 0:02:01]}  Nd7 {[%clk 0:01:55]} 14. Qe2 {[%clk 0:02:00]}  b6 {[%clk 0:01:43]} 15. Qc4 {[%clk 0:01:52]}  Kf7 {[%clk 0:01:21]} 16. Qxc6 {[%clk 0:01:21]}  Ba6 {[%clk 0:01:19]} 17. d5 {[%clk 0:01:17]}  Nc5 {[%clk 0:01:11]} 18. dxe6+ {[%clk 0:00:47]}  Nxe6 {[%clk 0:01:10]} 19. Rd1 {[%clk 0:00:47]}  Qc8 {[%clk 0:01:03]} 20. Qa4 {[%clk 0:00:31]}  Qc4 {[%clk 0:00:59]} 21. Qxc4 {[%clk 0:00:20]}  Bxc4 {[%clk 0:01:00]} 22. b3 {[%clk 0:00:21]}  Ba6 {[%clk 0:00:58]} 23. Nd5 {[%clk 0:00:22]}  Bd8 {[%clk 0:00:52]} 24. Kd2 {[%clk 0:00:15]}  Bb7 {[%clk 0:00:50]} 25. Kc1 {[%clk 0:00:15]}  Bxd5 {[%clk 0:00:47]} 26. Rxd5 {[%clk 0:00:16]}  Be7 {[%clk 0:00:33]} 27. Rd7 {[%clk 0:00:15]}  Rae8 {[%clk 0:00:19]} 28. Ng5+ {[%clk 0:00:12]}  Nxg5 {[%clk 0:00:17]} 29. Bxg5 {[%clk 0:00:13]}  Ke6 {[%clk 0:00:18]} 30. Rxe7+ {[%clk 0:00:13]}  Rxe7 {[%clk 0:00:18]} 31. Bxe7 {[%clk 0:00:14]}  Kxe7 {[%clk 0:00:19]} 32. Rh7+ {[%clk 0:00:14]}  Kf6 {[%clk 0:00:19]} 33. Rxa7 {[%clk 0:00:15]}  Rh8 {[%clk 0:00:17]} 34. Rb7 {[%clk 0:00:14]}  Rh2 {[%clk 0:00:15]} 35. Rxb6+ {[%clk 0:00:14]}  Kg5 {[%clk 0:00:16]} 36. a4 {[%clk 0:00:14]}  Rxg2 {[%clk 0:00:16]} 37. a5 {[%clk 0:00:14]}  Rxf2 {[%clk 0:00:16]} 38. a6 {[%clk 0:00:14]}  Rh2 {[%clk 0:00:15]} 39. a7 {[%clk 0:00:15]}  Rh8 {[%clk 0:00:11]} 40. Rb8 {[%clk 0:00:14]} 1-0


[Site "https://www.chess.com"]

[Event "Titled Tuesday Blitz August 22 Early 2023"]
[White "GAO"]
[Black "Buraczewski, Rafal"]
[BlackFideId "1155245"]
[WhiteElo "2259"]
[BlackElo "2117"]
[Result "1-0"]
[Round "11"]
[TimeControl "180+1"]
[Date "2023.08.22"]
[WhiteClock "0:00:52"]
[BlackClock "0:00:02"]
[Board "155"]

1. Nf3 {[%clk 0:03:00]}  d5 {[%clk 0:02:59]} 2. b3 {[%clk 0:02:56]}  c6 {[%clk 0:02:59]} 3. Bb2 {[%clk 0:02:56]}  Bf5 {[%clk 0:03:00]} 4. g3 {[%clk 0:02:54]}  e6 {[%clk 0:03:00]} 5. Bg2 {[%clk 0:02:54]}  Nd7 {[%clk 0:03:01]} 6. O-O {[%clk 0:02:55]}  Ngf6 {[%clk 0:03:01]} 7. d3 {[%clk 0:02:55]}  Be7 {[%clk 0:02:59]} 8. Nbd2 {[%clk 0:02:54]}  O-O {[%clk 0:02:58]} 9. Re1 {[%clk 0:02:53]}  Nc5 {[%clk 0:02:46]} 10. h3 {[%clk 0:02:47]}  h6 {[%clk 0:02:45]} 11. Ne5 {[%clk 0:02:42]}  a5 {[%clk 0:02:39]} 12. a3 {[%clk 0:02:41]}  Bh7 {[%clk 0:02:35]} 13. e4 {[%clk 0:02:33]}  dxe4 {[%clk 0:02:32]} 14. Nxe4 {[%clk 0:02:25]}  Nfxe4 {[%clk 0:02:30]} 15. dxe4 {[%clk 0:02:26]}  Bf6 {[%clk 0:02:18]} 16. Qe2 {[%clk 0:02:13]}  Qc7 {[%clk 0:02:14]} 17. f4 {[%clk 0:02:06]}  b5 {[%clk 0:02:04]} 18. Rad1 {[%clk 0:01:57]}  Rfd8 {[%clk 0:02:03]} 19. Qe3 {[%clk 0:01:21]}  Nd7 {[%clk 0:01:47]} 20. Nd3 {[%clk 0:01:19]}  Bxb2 {[%clk 0:01:40]} 21. Nxb2 {[%clk 0:01:20]}  Nf6 {[%clk 0:01:22]} 22. a4 {[%clk 0:01:14]}  Rxd1 {[%clk 0:01:14]} 23. Rxd1 {[%clk 0:01:13]}  Rd8 {[%clk 0:01:15]} 24. Rd4 {[%clk 0:01:01]}  Rxd4 {[%clk 0:00:34]} 25. Qxd4 {[%clk 0:01:01]}  c5 {[%clk 0:00:34]} 26. Qe5 {[%clk 0:00:52]}  Qxe5 {[%clk 0:00:30]} 27. fxe5 {[%clk 0:00:53]}  Nxe4 {[%clk 0:00:24]} 28. axb5 {[%clk 0:00:53]}  Kf8 {[%clk 0:00:04]} 29. b6 {[%clk 0:00:53]}  Ke7 {[%clk 0:00:02]} 30. b7 {[%clk 0:00:52]} 1-0


[Site "https://www.chess.com"]

[Event "Titled Tuesday Blitz August 22 Early 2023"]
[White "Wu, Derek"]
[Black "Seifert, Henryk"]
[WhiteFideId "30914558"]
[BlackFideId "1100963"]
[WhiteElo "2681"]
[BlackElo "2128"]
[Result "1-0"]
[Round "11"]
[TimeControl "180+1"]
[Date "2023.08.22"]
[WhiteClock "0:01:20"]
[BlackClock "0:00:04"]
[Board "156"]

1. e4 {[%clk 0:02:58]}  e6 {[%clk 0:03:00]} 2. d4 {[%clk 0:02:57]}  d5 {[%clk 0:03:00]} 3. Nc3 {[%clk 0:02:56]}  Nf6 {[%clk 0:02:59]} 4. Bg5 {[%clk 0:02:54]}  Be7 {[%clk 0:02:58]} 5. e5 {[%clk 0:02:54]}  Nfd7 {[%clk 0:02:58]} 6. h4 {[%clk 0:02:55]}  a6 {[%clk 0:02:57]} 7. Qg4 {[%clk 0:02:53]}  Bxg5 {[%clk 0:02:56]} 8. hxg5 {[%clk 0:02:54]}  c5 {[%clk 0:02:52]} 9. Nf3 {[%clk 0:02:43]}  Nc6 {[%clk 0:02:50]} 10. dxc5 {[%clk 0:02:41]}  Ndxe5 {[%clk 0:02:42]} 11. Nxe5 {[%clk 0:02:41]}  Nxe5 {[%clk 0:02:42]} 12. Qg3 {[%clk 0:02:38]}  Ng6 {[%clk 0:02:15]} 13. O-O-O {[%clk 0:02:37]}  Bd7 {[%clk 0:02:11]} 14. Bd3 {[%clk 0:02:21]}  Qb8 {[%clk 0:01:57]} 15. Bxg6 {[%clk 0:02:11]}  Qxg3 {[%clk 0:01:49]} 16. Bxf7+ {[%clk 0:02:12]}  Kxf7 {[%clk 0:01:49]} 17. fxg3 {[%clk 0:02:13]}  Rac8 {[%clk 0:01:29]} 18. Ne4 {[%clk 0:02:09]}  Kg6 {[%clk 0:01:18]} 19. b4 {[%clk 0:02:05]}  Bc6 {[%clk 0:00:54]} 20. Nd6 {[%clk 0:02:04]}  Rc7 {[%clk 0:00:48]} 21. Rde1 {[%clk 0:02:00]}  Re7 {[%clk 0:00:48]} 22. Re5 {[%clk 0:02:00]}  h6 {[%clk 0:00:43]} 23. Kd2 {[%clk 0:01:56]}  Rf8 {[%clk 0:00:40]} 24. gxh6 {[%clk 0:01:55]}  gxh6 {[%clk 0:00:39]} 25. Ke2 {[%clk 0:01:31]}  d4 {[%clk 0:00:36]} 26. Rh4 {[%clk 0:01:20]}  Bxg2 {[%clk 0:00:29]} 27. Rxd4 {[%clk 0:01:20]}  Bf3+ {[%clk 0:00:23]} 28. Ke3 {[%clk 0:01:20]}  Bd5 {[%clk 0:00:04]} 29. Rdxd5 {[%clk 0:01:20]} 1-0


[Site "https://www.chess.com"]

[Event "Titled Tuesday Blitz August 22 Early 2023"]
[White "Floresvillar Gonzalez, Luis Migu"]
[Black "elcala"]
[WhiteFideId "5100542"]
[WhiteElo "2124"]
[BlackElo "1714"]
[Result "1/2-1/2"]
[Round "11"]
[TimeControl "180+1"]
[Date "2023.08.22"]
[WhiteClock "0:00:07"]
[BlackClock "0:00:16"]
[Board "159"]

1. d4 {[%clk 0:03:00]}  d5 {[%clk 0:02:59]} 2. c3 {[%clk 0:03:00]}  Nf6 {[%clk 0:03:00]} 3. Bg5 {[%clk 0:02:59]}  g6 {[%clk 0:02:56]} 4. Nd2 {[%clk 0:02:58]}  Bg7 {[%clk 0:02:55]} 5. e3 {[%clk 0:02:58]}  O-O {[%clk 0:02:53]} 6. Bd3 {[%clk 0:02:58]}  c6 {[%clk 0:02:51]} 7. f4 {[%clk 0:02:56]}  Bg4 {[%clk 0:02:44]} 8. Ngf3 {[%clk 0:02:55]}  Nbd7 {[%clk 0:02:15]} 9. h3 {[%clk 0:02:54]}  Bf5 {[%clk 0:02:14]} 10. Bxf5 {[%clk 0:02:51]}  gxf5 {[%clk 0:02:15]} 11. Rg1 {[%clk 0:02:34]}  Ne4 {[%clk 0:02:12]} 12. Nxe4 {[%clk 0:02:32]}  fxe4 {[%clk 0:02:11]} 13. Ne5 {[%clk 0:02:22]}  Nxe5 {[%clk 0:02:09]} 14. fxe5 {[%clk 0:02:21]}  f6 {[%clk 0:02:05]} 15. exf6 {[%clk 0:02:16]}  Bxf6 {[%clk 0:01:59]} 16. Qg4 {[%clk 0:02:09]}  Bxg5 {[%clk 0:01:42]} 17. Qxg5+ {[%clk 0:02:09]}  Kh8 {[%clk 0:01:29]} 18. Qe5+ {[%clk 0:02:08]}  Kg8 {[%clk 0:01:19]} 19. O-O-O {[%clk 0:02:08]}  Rf6 {[%clk 0:01:18]} 20. Rdf1 {[%clk 0:02:05]}  Qf8 {[%clk 0:01:15]} 21. Rxf6 {[%clk 0:01:56]}  Qxf6 {[%clk 0:01:16]} 22. Qg3+ {[%clk 0:01:37]}  Kh8 {[%clk 0:00:59]} 23. Qe1 {[%clk 0:01:15]}  Rf8 {[%clk 0:00:57]} 24. Qg3 {[%clk 0:00:36]}  Qf2 {[%clk 0:00:49]} 25. Qe5+ {[%clk 0:00:34]}  Kg8 {[%clk 0:00:48]} 26. Qg5+ {[%clk 0:00:18]}  Kh8 {[%clk 0:00:47]} 27. Qe5+ {[%clk 0:00:18]}  Kg8 {[%clk 0:00:46]} 28. Qg5+ {[%clk 0:00:18]}  Kf7 {[%clk 0:00:45]} 29. Qf4+ {[%clk 0:00:17]}  Qxf4 {[%clk 0:00:44]} 30. exf4 {[%clk 0:00:17]}  Ke6 {[%clk 0:00:41]} 31. g3 {[%clk 0:00:16]}  Kf5 {[%clk 0:00:39]} 32. Kd2 {[%clk 0:00:16]}  h5 {[%clk 0:00:37]} 33. Ke3 {[%clk 0:00:15]}  Rg8 {[%clk 0:00:35]} 34. Rg2 {[%clk 0:00:14]}  Rg6 {[%clk 0:00:31]} 35. b4 {[%clk 0:00:13]}  b6 {[%clk 0:00:26]} 36. a4 {[%clk 0:00:13]}  Rg8 {[%clk 0:00:18]} 37. a5 {[%clk 0:00:12]}  b5 {[%clk 0:00:16]} 38. Rg1 {[%clk 0:00:09]}  a6 {[%clk 0:00:16]} 39. Rg2 {[%clk 0:00:09]}  Rg7 {[%clk 0:00:16]} 40. Rg1 {[%clk 0:00:09]}  Rg8 {[%clk 0:00:16]} 41. Rg2 {[%clk 0:00:08]}  Rg7 {[%clk 0:00:16]} 42. Rg1 {[%clk 0:00:07]}  Rg8 {[%clk 0:00:16]} 1/2-1/2


[Site "https://www.chess.com"]

[Event "Titled Tuesday Blitz August 22 Early 2023"]
[White "Todev, Simeon"]
[Black "Orlov, Georgi"]
[WhiteFideId "2925133"]
[BlackFideId "2011271"]
[WhiteElo "2398"]
[BlackElo "2496"]
[Result "0-1"]
[Round "11"]
[TimeControl "180+1"]
[Date "2023.08.22"]
[WhiteClock "0:00:00"]
[BlackClock "0:00:51"]
[Board "161"]

1. e4 {[%clk 0:02:19]}  c5 {[%clk 0:02:58]} 2. Nf3 {[%clk 0:02:13]}  e6 {[%clk 0:02:57]} 3. c3 {[%clk 0:02:08]}  Nf6 {[%clk 0:02:55]} 4. Be2 {[%clk 0:02:08]}  Nxe4 {[%clk 0:02:54]} 5. d4 {[%clk 0:02:07]}  cxd4 {[%clk 0:02:54]} 6. cxd4 {[%clk 0:02:08]}  d5 {[%clk 0:02:54]} 7. Nc3 {[%clk 0:02:09]}  Bb4 {[%clk 0:02:54]} 8. O-O {[%clk 0:02:06]}  Bxc3 {[%clk 0:02:52]} 9. bxc3 {[%clk 0:02:03]}  Nxc3 {[%clk 0:02:52]} 10. Qc2 {[%clk 0:02:03]}  Nxe2+ {[%clk 0:02:51]} 11. Qxe2 {[%clk 0:02:04]}  O-O {[%clk 0:02:51]} 12. Bf4 {[%clk 0:02:03]}  Nc6 {[%clk 0:02:51]} 13. Rab1 {[%clk 0:02:04]}  b6 {[%clk 0:02:50]} 14. Rfc1 {[%clk 0:02:04]}  Bd7 {[%clk 0:02:47]} 15. Qd2 {[%clk 0:02:04]}  Rc8 {[%clk 0:02:46]} 16. Rc3 {[%clk 0:02:02]}  f6 {[%clk 0:02:40]} 17. Rbc1 {[%clk 0:02:00]}  Qe7 {[%clk 0:02:40]} 18. h3 {[%clk 0:01:55]}  Na5 {[%clk 0:02:38]} 19. Rxc8 {[%clk 0:01:50]}  Rxc8 {[%clk 0:02:37]} 20. Rxc8+ {[%clk 0:01:51]}  Bxc8 {[%clk 0:02:37]} 21. Qc3 {[%clk 0:01:52]}  Nc4 {[%clk 0:02:36]} 22. Nd2 {[%clk 0:01:51]}  Ba6 {[%clk 0:02:32]} 23. Nb3 {[%clk 0:01:48]}  Qa3 {[%clk 0:02:30]} 24. Qe1 {[%clk 0:01:45]}  Kf7 {[%clk 0:02:28]} 25. Qe2 {[%clk 0:01:38]}  g6 {[%clk 0:02:19]} 26. Bc1 {[%clk 0:01:20]}  Qb4 {[%clk 0:02:18]} 27. Bd2 {[%clk 0:01:11]}  Qb5 {[%clk 0:02:14]} 28. Qg4 {[%clk 0:01:05]}  Nd6 {[%clk 0:02:07]} 29. Qh4 {[%clk 0:00:51]}  h5 {[%clk 0:02:06]} 30. Qf4 {[%clk 0:00:50]}  Qd7 {[%clk 0:01:59]} 31. Qh6 {[%clk 0:00:49]}  Nf5 {[%clk 0:01:34]} 32. Qh7+ {[%clk 0:00:46]}  Ke8 {[%clk 0:01:34]} 33. Qg8+ {[%clk 0:00:13]}  Ke7 {[%clk 0:01:34]} 34. Bb4+ {[%clk 0:00:13]}  Nd6 {[%clk 0:01:34]} 35. Qxg6 {[%clk 0:00:11]}  Bc4 {[%clk 0:01:17]} 36. Qg7+ {[%clk 0:00:04]}  Kd8 {[%clk 0:01:11]} 37. Qxf6+ {[%clk 0:00:04]}  Kc8 {[%clk 0:01:10]} 38. Qe5 {[%clk 0:00:02]}  Nf7 {[%clk 0:01:07]} 39. Qg7 {[%clk 0:00:01]}  a5 {[%clk 0:01:05]} 40. Nd2 {[%clk 0:00:02]}  axb4 {[%clk 0:01:02]} 41. Qf8+ {[%clk 0:00:03]}  Kb7 {[%clk 0:01:01]} 42. Qxb4 {[%clk 0:00:03]}  Bxa2 {[%clk 0:01:00]} 43. Qb2 {[%clk 0:00:02]}  Bc4 {[%clk 0:01:00]} 44. Nf3 {[%clk 0:00:02]}  Qc7 {[%clk 0:00:59]} 45. Qd2 {[%clk 0:00:02]}  b5 {[%clk 0:00:58]} 46. Qb4 {[%clk 0:00:02]}  Kb6 {[%clk 0:00:58]} 47. Ne1 {[%clk 0:00:02]}  Qd6 {[%clk 0:00:57]} 48. Qb2 {[%clk 0:00:02]}  b4 {[%clk 0:00:56]} 49. Nc2 {[%clk 0:00:03]}  b3 {[%clk 0:00:56]} 50. Na1 {[%clk 0:00:02]}  Qb4 {[%clk 0:00:56]} 51. Nc2 {[%clk 0:00:03]}  Qd2 {[%clk 0:00:55]} 52. Qa3 {[%clk 0:00:01]}  bxc2 {[%clk 0:00:53]} 53. Qb2+ {[%clk 0:00:01]}  Kc6 {[%clk 0:00:52]} 54. Qa3 {[%clk 0:00:00]}  c1=Q+ {[%clk 0:00:51]} 0-1


[Site "https://www.chess.com"]